Cogmind - Beta 13 @@@ ROGUE MODE // 2024.04.05 @ 10:58:06 Player: Fractal Result: Destroyed by as-31452 with Assembled Rifle Performance ------------- Evolutions (0) 0 Regions Visited (3) 600 Robots Destroyed (14) 70 Value Destroyed (233) 233 Prototype IDs (25) 500 Alien Tech Used (0) 0 Bonus (321) 321 TOTAL SCORE: 1724 Bonus ------- Follower Combat Kills 21 Aligned with FarCom 300 Cogmind --------- Core Integrity 0/250 Matter 275/300 Energy 108/125 System Corruption 2% Temperature Cool (2) Movement Walking (120) Location -10/Exiles Parts ------- > --- POWER (1) -------- Light Ion Engine > --- PROPULSION (2) --- Aluminum Leg Aluminum Leg > --- UTILITY (2) ------ Medium Storage Unit Visual Processing Unit > --- WEAPON (2) ------- (None) > --- INVENTORY (10) --- Light Ion Engine Light Ion Engine Aluminum Leg Aluminum Leg Improved Terrain Scanner Skeleton Box Peak State ------------ > --- POWER ------------ Light Nuclear Core > --- PROPULSION ------- Aluminum Leg Aluminum Leg > --- UTILITY ---------- Medium Storage Unit Visual Processing Unit > --- WEAPON ----------- EM Pulse Gun > --- INVENTORY -------- Ion Engine Light Ion Engine Light Ion Engine Light Ion Engine Aluminum Leg Aluminum Leg Wheel Improved Terrain Scanner [Rating: 10] Favorites ----------- Power Ion Engine Engine Ion Engine Power Core Light Nuclear Core Propulsion Wheel Leg Aluminum Leg Wheel Wheel Utility Medium Storage Unit Device Sensor Array Storage Medium Storage Unit Processor Visual Processing Unit Weapon Light Assault Rifle Energy Gun EM Pulse Gun Ballistic Gun Light Assault Rifle Build | -11 -10 -10 -10 ------- Run | Yrd Mat Min Exi Slots Evolved . | . . . . Power . | . . . . Propulsion . | . . . . Utility . | . . . . Weapon . | . . . . Parts Attached 27 | 8 4 12 3 Power 6 | 1 1 3 1 Engine 5 | 1 1 2 1 Core 1 | . . 1 . Reactor . | . . . . Propulsion 11 | 2 . 7 2 Treads . | . . . . Leg 5 | . . 3 2 Wheel 6 | 2 . 4 . Hover . | . . . . Flight . | . . . . Utility 6 | 3 3 . . Device 3 | 2 1 . . Storage 2 | 1 1 . . Processor 1 | . 1 . . Hackware . | . . . . Protection . | . . . . Artifact . | . . . . Weapon 4 | 2 . 2 . Energy Gun 1 | . . 1 . Energy Cannon . | . . . . Ballistic Gun 3 | 2 . 1 . Ballistic Cannon . | . . . . Launcher . | . . . . Special Weapon . | . . . . Impact Weapon . | . . . . Slashing Weapon . | . . . . Piercing Weapon . | . . . . Special Melee Weapon . | . . . . Unidentified Prototypes . | . . . . Parts Lost 10 | . 1 5 4 Power 2 | . . 1 1 Propulsion 4 | . . 2 2 Utility 1 | . 1 . . Weapon 3 | . . 2 1 Highest Loss Streak 5 | . 1 5 4 To Critical Strikes . | . . . . Average Slot Usage (%) 93 | . 100 93 82 Engine 8 | . 14 10 . Core 4 | . . 3 13 Leg 2 | . . 4 . Wheel 24 | . 28 22 26 Device 3 | . 12 . . Storage 14 | . 14 14 14 Processor 10 | . 1 14 14 Energy Gun 5 | . . 4 13 Ballistic Gun 17 | . 28 18 . Naked Turns . | . . . . Heaviest Build 19 | 14 19 18 17 Greatest Support 26 | 26 26 26 20 Greatest Overweight (x) 1 | . . . 1 Average Overweight (x) . | . . . . Largest Inventory Capacity 10 | 8 10 10 10 Average Capacity 9 | 7 9 10 10 Most Carried 10 | 7 10 10 10 Average Carried 8 | 3 8 9 9 Final Capacity 10 | 8 10 10 10 Final Carried 10 | 7 10 10 6 Class Distribution -------------------- 62% | Mutant 37% | Scavenger-Mutant Dominant Class ---------------- Mutant | -10/Materials Mutant | -10/Mines Scavenger-Mutant | -10/Exiles Resources | -11 -10 -10 -10 ----------- Run | Yrd Mat Min Exi Matter Collected 583 | 312 139 132 . Remotely . | . . . . Salvage Created 484 | 128 257 99 . Parts 31 | 6 18 7 . Haulers Intercepted . | . . . . Recyclers Shooed 1 | . . 1 . Parts Field Recycled . | . . . . Retrieved Matter . | . . . . Parts Self-Destructed . | . . . . Prevented . | . . . . Kills | -11 -10 -10 -10 ------- Run | Yrd Mat Min Exi Combat Hostiles Destroyed 11 | . 7 4 . Guns 11 | . 7 4 . Classes Destroyed 7 | 2 3 2 . Worker 2 | . . 2 . Tunneler 2 | 2 . . . Recycler 1 | 1 . . . Watcher 2 | . 2 . . Swarmer 3 | . 3 . . Grunt 4 | . 4 . . Assembled 4 | . . 4 . Best Kill Streak 5 | 3 3 5 . Combat Bots Only 4 | . 3 4 . Max Kills in Single Turn 2 | 1 2 1 . Gunslinging . | . . . . Exploded . | . . . . Melee . | . . . . Uniques/NPCs Destroyed . | . . . . Combat | -11 -10 -10 -10 -------- Run | Yrd Mat Min Exi Hostile Shots Fired 90 | . 25 44 21 Missed 27 | . 7 11 9 Damage Taken 999 | . 208 510 281 Core 260 | . 49 118 93 Absorbed by Shields . | . . . . Core Remaining (%) 100 | 100 . . . Volleys Fired 55 | 8 26 21 . Largest 2 | 2 2 2 . Hottest 60 | 40 40 60 . Shots Fired 99 | 16 52 30 1 Gun 99 | 16 52 30 1 Cannon . | . . . . Launcher . | . . . . Special . | . . . . Kinetic 84 | 16 52 16 . Thermal . | . . . . Explosive . | . . . . Electromagnetic 15 | . . 14 1 Robot Hit Streak 14 | 13 14 4 2 Robot Miss Streak 4 | . 4 4 . Penetration Max . | . . . . Secondary Targets 2 | . 1 1 . Max Gunslinging Chain 1 | . 1 1 . Shots Hit Robots 55 | 13 27 14 1 Core Hits 29 | 4 16 9 . Critical Kills . | . . . . Critical Parts Destroyed 1 | 1 . . . Critical Strikes 1 | 1 . . . Destroy 1 | 1 . . . Melee Attacks . | . . . . Impact . | . . . . Slashing . | . . . . Piercing . | . . . . Sneak Attacks . | . . . . Combat Hostiles . | . . . . Follow-up Attacks . | . . . . Damage Inflicted 659 | 140 294 224 1 Guns 607 | 140 294 172 1 Cannons . | . . . . Explosions 37 | . . 37 . Melee . | . . . . Ramming 15 | . . 15 . Kinetic 481 | 140 294 47 . Thermal 37 | . . 37 . Explosive . | . . . . Electromagnetic 126 | . . 125 1 Impact . | . . . . Slashing . | . . . . Piercing . | . . . . Highest Corruption 2 | . 1 1 2 Average Corruption 1 | . 1 1 1 Corruption Purged . | . . . . Corruption Blocked . | . . . . Effects 5 | . 1 2 2 Matter Fused 1 | . . 1 . Energy Discharges 1 | . . . 1 Data Loss (major) 1 | . 1 . . Misfires 2 | . . 1 1 Overload Shots . | . . . . Overflow Damage 24 | . . 24 . Projectiles . | . . . . Explosions 24 | . . 24 . Melee . | . . . . Knockbacks . | . . . . Impact . | . . . . Kinetic . | . . . . Secondary . | . . . . Self-Inflicted Damage 32 | . . 32 . Shots 1 | . . 1 . Rammed 2 | . . 2 . Targets Rammed 2 | . . 2 . Kicked . | . . . . Crushed . | . . . . Highest Temperature 136 | . 27 136 4 Average Temperature 42 | . 9 67 3 Received Heat Transfer 277 | . 117 160 . Siege Activations . | . . . . Robots Corrupted . | . . . . Combat Hostiles . | . . . . Parts Fried . | . . . . Impact Corruptions . | . . . . Robots Melted . | . . . . Combat Hostiles . | . . . . Parts Melted . | . . . . Heat Transferred 100 | . . 100 . Parts Sabotaged . | . . . . Parts Stolen . | . . . . Parts Stripped . | . . . . Power Chain Reactions 1 | . . 1 . Alert | -11 -10 -10 -10 ------- Run | Yrd Mat Min Exi Peak Influence 307 | 15 307 204 . Initial 119 | . 9 119 . Average 111 | 4 161 101 . Maximum Alert Level 1 | . 1 1 . Low Security (%) 80 | 100 75 78 . Level 1 19 | . 24 21 . Level 2 . | . . . . Level 3 . | . . . . Level 4 . | . . . . Level 5 . | . . . . High Security . | . . . . Max Security . | . . . . Squads Dispatched 3 | . 3 . . Investigation 1 | . 1 . . Extermination . | . . . . Reinforcement 2 | . 2 . . Assault . | . . . . Garrison . | . . . . Intercept . | . . . . Searches Triggered . | . . . . Construction Impeded . | . . . . Haulers Reinforced . | . . . . Active Scanning Responses . | . . . . Cargo Convoy Interrupts . | . . . . Stealth | -11 -10 -10 -10 --------- Run | Yrd Mat Min Exi Distress Signals . | . . . . Communications Jammed . | . . . . Distress Signals . | . . . . Times Spotted 37 | . 13 14 10 Peak Tracking Total 11 | . 3 3 11 Tactical Retreats 4 | . 1 2 1 Traps | -11 -10 -10 -10 ------- Run | Yrd Mat Min Exi Traps Triggered . | . . . . Indirectly . | . . . . Trap Hack Attempts . | . . . . Triggered . | . . . . Disarmed . | . . . . Reprogrammed . | . . . . Reused 2 | . . 2 . Traps Extracted . | . . . . Installed 2 | . . 2 . Triggered . | . . . . Most Traps Carried 2 | . . 2 . Machines | -11 -10 -10 -10 ---------- Run | Yrd Mat Min Exi Machines Disabled . | . . . . Max in Single Turn . | . . . . Machines Repaired . | . . . . Machines Dismantled . | . . . . Machines Sabotaged . | . . . . Overloaded Fab Kills . | . . . . Hacking | -11 -10 -10 -10 --------- Run | Yrd Mat Min Exi Machines Accessed 5 | . 3 . 2 Terminals 2 | . 2 . . Fabricators . | . . . . Repair Stations . | . . . . Recycling Units 1 | . 1 . . Scanalyzers . | . . . . Garrison Access . | . . . . Total Hacks 17 | . 10 . 7 Successful 11 | . 4 . 7 Failed 6 | . 6 . . Catastrophic 1 | . 1 . . Database Lockouts . | . . . . Manual 7 | . 3 . 4 Terminals 7 | . 7 . . Fabricators . | . . . . Repair Stations . | . . . . Recycling Units 3 | . 3 . . Scanalyzers . | . . . . Garrison Access . | . . . . Terminal Hacks 11 | . 4 . 7 Record 6 | . . . 6 Prototype ID Bank 1 | . 1 . . Emergency Access Points 1 | . 1 . . Zone Layout 2 | . 2 . . Derelict Proto ID Bank 1 | . . . 1 Fabricator Hacks . | . . . . Repair Station Hacks . | . . . . Recycling Unit Hacks . | . . . . Scanalyzer . | . . . . Garrison Access Hacks . | . . . . Unauthorized Hacks . | . . . . Terminals . | . . . . Fabricators . | . . . . Repair Stations . | . . . . Recycling Units . | . . . . Scanalyzers . | . . . . Garrison Access . | . . . . Data Cores Recovered . | . . . . Used . | . . . . Hacking Detections 2 | . 2 . . Full Trace Events 1 | . 1 . . Feedback Events 1 | . 1 . . Corruption 1 | . 1 . . Feedback Blocked . | . . . . Robot Schematics Acquired . | . . . . Robots Built . | . . . . Authchips . | . . . . Time . | . . . . Total Robot Build Rating . | . . . . Part Schematics Acquired . | . . . . Parts Built . | . . . . Authchips . | . . . . Time . | . . . . Total Part Build Rating . | . . . . Parts Repaired . | . . . . Time . | . . . . Parts Recycled . | . . . . Recycled Matter . | . . . . Retrieved Matter . | . . . . Retrieved Components . | . . . . Parts Scanalyzed . | . . . . Part Schematics Acquired . | . . . . Parts Damaged . | . . . . Bothacking | -11 -10 -10 -10 ------------ Run | Yrd Mat Min Exi Used RIF Installer . | . . . . Robots Hacked . | . . . . Non-combat . | . . . . Combat . | . . . . Robot Hacks Applied . | . . . . Relay Couplers Released . | . . . . Fabnet Peak Effective % . | . . . . Robots Rewired . | . . . . Allies Hacked . | . . . . Hacks Repelled . | . . . . Allies | -11 -10 -10 -10 -------- Run | Yrd Mat Min Exi Total Allies 3 | . . 3 . Largest Group 3 | . . 3 . Highest-Rated Group 40 | . . 40 . Highest-Rated Ally 16 | . . 16 . Total Orders 1 | . . 1 . GUARD 1 | . . 1 . Ally Attacks 33 | . . 33 . Total Damage 297 | . . 297 . Kills 6 | . . 6 . Allies Corrupted . | . . . . Allies Melted . | . . . . Intel | -11 -10 -10 -10 ------- Run | Yrd Mat Min Exi Robot Analysis Total . | . . . . Derelict Logs Recovered 1 | . . 1 . Drone Launches . | . . . . Drone Recoveries . | . . . . Exploration | -11 -10 -10 -10 ------------- Run | Yrd Mat Min Exi Turns Passed 1376 | 111 362 611 292 Spaces Moved 1320 | 79 309 580 352 Core 1 | 1 . . . Treads . | . . . . Legs 85 | . . 77 8 Wheels 1234 | 78 309 503 344 Hover . | . . . . Flight . | . . . . Fastest Speed 50 | 50 90 80 80 Average Speed 87 | 89 90 89 81 Slowest Speed 120 | 90 90 120 120 Overloaded Moves . | . . . . Propulsion Burnouts . | . . . . Robots Hopped . | . . . . Cave-ins Triggered . | . . . . Exploration Rate (%) 54 | 5 51 90 70 Regions Visited 3 Branch Regions 2 Pre-discovered Areas 1 | . . . 1 Known Exits Taken . | . . . . Unknown Exits Taken 3 | 1 1 1 . Scrap Searched 1 | . . 1 . Spaces Dug . | . . . . Terrain Destroyed 4 | . . 4 . Melee . | . . . . Projectile . | . . . . AOE 4 | . . 4 . Terrain Rammed . | . . . . Walls Destroyed . | . . . . Machines Disabled . | . . . . Actions | -11 -10 -10 -10 --------- Run | Yrd Mat Min Exi Total 1449 | 101 345 645 358 Wait 16 | . 2 14 . Move 1317 | 78 308 579 352 Hop . | . . . . Pick Up 17 | 6 3 7 1 Fast Attach 9 | 8 1 . . Attach 8 | . 1 4 3 Detach 2 | 1 1 . . Swap 10 | . 2 8 . Drop 11 | . 1 8 2 Fire 55 | 8 26 21 . Melee . | . . . . Ram 2 | . . 2 . Kick . | . . . . Crush . | . . . . Escape Stasis . | . . . . Rewire . | . . . . Trap 2 | . . 2 . Miscellaneous . | . . . . Route ------- -11/Scrapyard -10/Materials -10/Mines (discovered 3 exits: [*Mat x2] / *Exi) -10/Exiles (discovered 2 exits: [*Min x2]) History --------- Turn | Location | Event 14 | -11/Scrapyard | Discovered new exit (range 16) 112 | -11/Scrapyard | Entered Materials 152 | -10/Materials | Discovered new exit (range 17) 306 | -10/Materials | Build established: Mutant 474 | -10/Materials | Entered Mines 483 | -10/Mines | Assisted by bots powering up and referring to "LRC-V3" 484 | -10/Mines | Met a Derelict bent on vengeance 543 | -10/Mines | Discovered new exit (range 5) 581 | -10/Mines | Found a hidden stash of uninstalled traps 647 | -10/Mines | Learned location of 1 exit from Materials 665 | -10/Mines | Assembled infested the area 889 | -10/Mines | Core integrity fell below 50% 919 | -10/Mines | Lost 5 parts (1p2n2w) 1073 | -10/Mines | Discovered new exit (range 9) 1082 | -10/Mines | Deemed a non-threat by the Exiles lab entrance 1082 | -10/Mines | Discovered new exit (range 5) 1085 | -10/Mines | Entered Exiles 1096 | -10/Exiles | Discovered new exit (range 16) 1125 | -10/Exiles | Met 8R-AWN 1138 | -10/Exiles | Met EX-HEX 1168 | -10/Exiles | Met EX-BIN 1180 | -10/Exiles | Aligned with FarCom system 1181 | -10/Exiles | Given EX-Vault access code 1210 | -10/Exiles | Opened EX-Vault 1215 | -10/Exiles | Found Skeleton Box 1232 | -10/Exiles | Warned to stay clear of 0b10 Research branches 1251 | -10/Exiles | Met EX-DEC 1263 | -10/Exiles | Learned location of Zion (-7) 1306 | -10/Exiles | Discovered new exit (range 12) 1314 | -10/Exiles | Build established: Scavenger-Mutant 1345 | -10/Exiles | Attacked by the Exiles 1348 | -10/Exiles | Core integrity fell below 20% 1377 | -10/Exiles | Destroyed by as-31452 with Assembled Rifle Last Messages --------------- Who left my Assembled plushie in the Analyzer again?! I'm not erasing this message until I get an answer. --BIN Dropped Ion Engine. EXIT=FOUND System corrupted: FCS attempts to trigger EM Pulse Gun. System corrupted: EM Pulse Gun misfires. EXILES: Hostile robot within lab perimeter. Defensive protocols time, folks! EX-DEC: "Let's see what this bad boy can do..." EX-DEC deploys DAS Turret. Knocked back. Wheel destroyed. Knocked back. EM Pulse Gun destroyed. Knocked back. Wheel destroyed. Lgt. Nuclear Core destroyed. Machine disabled. Map ----- +----------------------------------------------------+ | ?????????????????????????????????????????????????? | | ?????????????????????????????????????????????????? | | ?????????????????????????????????????????????????? | | ?????????????????????????????????????????????????? | | ?????????????????????????????????????????????????? | | ?????????????????????????????????????????????????? | | ?????????????????????????????????????????????????? | | ?????????????????????????????????????????????????? | | ?????????????????????????????????????????????????? | | ?????????????????????????????????????????????????? | | ????????????#####????????????????????????????????? | | ???????????## ##???????????????????????????????? | | ???????????# #???????????????????????????????? | | ???????????# < #???????????????????????????????? | | ???????????# ###?????????????????????????????? | | ???????????# ??????????????????????????????? | | ???????????# #??????????????????????????????? | | ????????????# #??????????????????????????????? | | ????????????# ##?????????????????????????????? | | ?????????????# #????????????#######??????????? | | ?????????????# #######??????#!!! "#??????????? | | ?????????????# #""##?????# "#??????????? | | ?????????????## #?????# "#??????????? | | ??????????????##" ##???## ""#??????????? | | ??????????????#"" #####" ""#??????????? | | ??????????????#### @ ##" ""#??????????? | | ?????????????????## #"" #????????????? | | ??????????????????#"## #????????????? | | ??????????????????####### ##???????????? | | ????????????????????????### "#???????????? | | ??????????????????########" ###?????????? | | ??????????????????# !!""""" ##????????? | | ??????????????????#! "###" a ######???# | | ??????????????????#! "#?##" a """##### | | ??????????????????#! * ##??#" | | ??????????????????# !""""""###???#"# | | ??????????????????##########?????#### | | ????????????????????????????????????### | | ??????????????????????????????????????### | | ????????????????????????????????????????## | | ?????????????????????????????????????????## | | ??????????????????????????????????????????##" | | ???????????????????????????????????????????#""" | | ??????????????????????????????????????????##" % | | ??????????????????????????????????????????#"" | | ?????????????????????????????????????????##""" | | ?????????????????????????????????????????#""" | | ?????????????????????????????????????????#""" | | ?????????????????????????????????????????#"" | | ?????????????????????????????????????????#""" | +----------------------------------------------------+ Best States ------------- Heat Dissipation 25 Energy Generation 14 Energy Capacity 250 Matter Stores 300 Matter Capacity 300 Sight Range 18 Robot Scan Range 14 Terrain Scan Range 16 Terrain Scan Density 10 Evasion (%) 50 Item Schematics ----------------- None Robot Schematics ------------------ None Fabricated ------------ Nothing Alien Tech Used ----------------- None Achievements -------------- None Challenges ------------ None Game ------ Seed HelicalBattleRouter Manual? 0 Play Time 00:27:27 Cumulative 7.1 hours Start 2024.04.05 @ 10:31:19 End 2024.04.05 @ 10:58:06 Sessions 1 Manual Loads 0 Difficulty Rogue Special Mode None Game No. 7 Rogue 7 Adventurer 0 Explorer 0 Win Type - Total 0 Types 0/0/0/0/0/0/0/0/0 Lore% 15 Gallery% 9 Achievement% 8 Wizard Run 0 Options --------- Layout 1 ASCII 0 Keyboard 1 Movement Numpad Keybinds 0 Fullscreen 1 Font 48/Terminus Map View 50x35 Zoom Use 0% Tactical HUD 0 Map Filters NONE Filters NONE Steam 1 RUN: bdbbab69-7241-4469-88ca-469c0a721e11